fUST/lending_fUST_20250912
["ID","MTS","AMOUNT","RATE_DAILY","PERIOD"]
[384996290,1757641840558,-480.0,0.00014906,2]
[384996292,1757641840567,-480.0,0.00014906,2]
[384996294,1757641840576,-480.0,0.00014906,2]
[384996296,1757641840585,-831.37,0.00014906,2]
[384996298,1757641840594,-1013.41,0.00014906,2]
[384996300,1757641840603,-480.0,0.00014906,2]
[384996302,1757641840612,-480.0,0.00014906,2]
[384996304,1757641840622,-480.0,0.00014906,2]
[384996306,1757641840631,-183.10810961,0.00014906,2]
[384996308,1757641840640,-480.0,0.00014906,2]
[384996310,1757641840650,-480.0,0.00014906,2]
[384996312,1757641840659,-1232.83,0.00014906,2]
[384996314,1757641840668,-480.0,0.00014906,2]
[384996316,1757641840677,-480.0,0.00014906,2]
[384996318,1757641840686,-2693.59,0.00014906,2]
[384996320,1757641840696,-480.0,0.00014906,2]
[384996322,1757641840705,-480.0,0.00014906,2]
[384996324,1757641840714,-2811.94,0.00014906,2]
[384996326,1757641840723,-499.29,0.00014906,2]
[384996329,1757641840743,-597.41,0.00014906,2]
[384996331,1757641840752,-7142.53,0.00014906,2]
[384996333,1757641840761,-480.0,0.00014907,2]
[384996335,1757641840770,-480.0,0.00014907,2]
[384996337,1757641840779,-480.0,0.00014907,2]
[384996339,1757641840789,-480.0,0.00014907,2]
[384996341,1757641840798,-480.0,0.00014907,2]
[384996343,1757641840807,-480.0,0.00014907,2]
[384996345,1757641840817,-480.0,0.00014907,2]
[384996347,1757641840827,-480.0,0.00014907,2]
[384996349,1757641840837,-480.0,0.00014907,2]
[384996351,1757641840847,-480.0,0.00014907,2]
[384996353,1757641840856,-480.0,0.00014907,2]
[384996354,1757641840865,-480.0,0.00014907,2]
[384996356,1757641840876,-480.0,0.00014907,2]
[384996358,1757641840891,-480.0,0.00014907,2]
[384996360,1757641840900,-829.62,0.00014907,2]
[384996362,1757641840909,-480.0,0.00014907,2]
[384996364,1757641840919,-480.0,0.00014907,2]
[384996366,1757641840929,-480.0,0.00014907,2]
[384996368,1757641840938,-768.51,0.00014907,2]
[384996370,1757641840947,-480.0,0.00014907,2]
[384996372,1757641840958,-624.59,0.00014907,2]
[384996374,1757641840967,-480.0,0.00014907,2]
[384996376,1757641840976,-538.72544235,0.00014907,2]
[384996388,1757641840985,-480.0,0.00014907,2]
[384996391,1757641841096,-480.0,0.00014907,2]
[384996393,1757641841106,-480.0,0.00014907,2]
[384996395,1757641841115,-480.0,0.0001493,2]
[384996397,1757641841125,-480.0,0.0001493,2]
[384996399,1757641841134,-480.0,0.0001493,2]
[384996401,1757641841143,-480.0,0.0001493,2]
[384996403,1757641841152,-578.00641027,0.00014936,2]
[384996405,1757641841162,-179.26535745,0.00014938,2]
[384996407,1757641841172,-187.16956393,0.00014938,2]
[384996409,1757641841181,-188.40005734,0.00014938,2]
[384996411,1757641841192,-500.0,0.00014979,2]
[384996413,1757641841204,-501.47034981,0.00014998,2]
[384996415,1757641841213,-500.0,0.00014998,2]
[384996417,1757641841226,-160.0,0.00015,2]
[384996419,1757641841236,-504.24070764,0.00015006,2]
[384996421,1757641841244,-500.0,0.00015006,2]
[384996423,1757641841254,-500.0,0.00015006,2]
[384996425,1757641841263,-500.0,0.00015012,2]
[384996427,1757641841273,-227.044988,0.00015068,2]
[384996429,1757641841282,-500.0,0.00015068,2]
[384996431,1757641841294,-906.02385137,0.00015081,2]
[384996433,1757641841304,-233.246092,0.00015081,2]
[384996435,1757641841313,-233.246092,0.00015081,2]
[384996437,1757641841323,-233.246092,0.00015081,2]
[384996439,1757641841333,-151.0,0.00015081,2]
[384996441,1757641841342,-233.246092,0.00015081,2]
[384996443,1757641841351,-151.0,0.00015081,2]
[384996445,1757641841360,-151.0,0.00015081,2]
[384996447,1757641841369,-151.0,0.00015081,2]
[384996449,1757641841380,-255.129391,0.00015081,2]
[384996451,1757641841389,-255.129391,0.00015081,2]
[384996453,1757641841399,-255.129391,0.00015081,2]
[384996455,1757641841408,-233.53179213,0.00015081,2]
[384996460,1757641841445,-21.59759887,0.00015081,2]
[384996463,1757641841457,-480.0,0.0001518,2]
[384996465,1757641841466,-480.0,0.0001518,2]
[384996467,1757641841476,-480.0,0.0001518,2]
[384996469,1757641841485,-480.0,0.0001518,2]
[384996471,1757641841494,-480.0,0.0001518,2]
[384996473,1757641841504,-1576.27,0.0001518,2]
[384996475,1757641841513,-933.28,0.0001518,2]
[384996477,1757641841523,-549.55077883,0.0001518,2]
[384996479,1757641841532,-480.0,0.0001518,2]
[384996481,1757641841542,-756.37,0.0001518,2]
[384996482,1757641841551,-1260.59,0.0001518,2]
[384996484,1757641841560,-480.0,0.0001518,2]
[384996486,1757641841569,-480.0,0.0001518,2]
[384996488,1757641841579,-480.0,0.0001518,2]
[384996490,1757641841587,-831.37,0.0001518,2]
[384996492,1757641841597,-1013.41,0.0001518,2]
[384996494,1757641841607,-480.0,0.0001518,2]
[384996496,1757641841617,-480.0,0.0001518,2]
[384996498,1757641841627,-480.0,0.0001518,2]
[384996500,1757641841636,-480.0,0.0001518,2]
[384996502,1757641841645,-480.0,0.0001518,2]
[384996504,1757641841654,-1232.83,0.0001518,2]
[384996506,1757641841664,-480.0,0.0001518,2]
[384996508,1757641841673,-480.0,0.0001518,2]
[384996510,1757641841682,-2693.59,0.0001518,2]
[384996512,1757641841691,-170.14876208,0.0001518,2]
[384996514,1757641841701,-480.0,0.0001518,2]
[384996516,1757641841710,-499.29,0.0001518,2]
[384996518,1757641841719,-2811.94,0.0001518,2]
[384996520,1757641841728,-597.41,0.0001518,2]
[384996522,1757641841739,-7142.53,0.0001518,2]
[384996525,1757641841754,-491.5577824,0.00015181,2]
[384996526,1757641841764,-490.54664721,0.00015181,2]
[384996528,1757641841773,-153.03226357,0.00015181,2]
[384996530,1757641841783,-480.0,0.00015181,2]
[384996532,1757641841792,-480.0,0.00015181,2]
[384996534,1757641841801,-480.0,0.00015181,2]
[384996536,1757641841810,-480.0,0.00015181,2]
[384996538,1757641841819,-191.78260558,0.00015181,2]
[384996540,1757641841833,-480.0,0.00015181,2]
[384996542,1757641841842,-480.0,0.00015181,2]
[384996544,1757641841851,-266.01748902,0.00015181,2]
[384996546,1757641841860,-480.0,0.00015181,2]
[384996548,1757641841869,-480.0,0.00015181,2]
[384996550,1757641841881,-512.79546345,0.00015181,2]
[384996552,1757641841894,-829.62,0.00015181,2]
[384996554,1757641841903,-480.0,0.00015181,2]
[384996556,1757641841913,-480.0,0.00015181,2]
[384996559,1757641841923,-480.0,0.00015181,2]
[384996560,1757641841932,-768.51,0.00015181,2]
[384996563,1757641841942,-480.0,0.00015181,2]
[384996564,1757641841951,-624.59,0.00015181,2]
[384996567,1757641841960,-151.0,0.00015181,2]
[384996568,1757641841970,-151.0,0.00015181,2]
[384996571,1757641841980,-151.0,0.00015181,2]
[384996572,1757641841989,-151.0,0.00015181,2]
[384996574,1757641841998,-480.0,0.00015181,2]
[384996576,1757641842007,-480.0,0.00015181,2]
[384996579,1757641842018,-480.0,0.00015181,2]
[384996581,1757641842027,-480.0,0.00015181,2]
[384996582,1757641842036,-488.74994856,0.00015204,2]
[384996584,1757641842045,-568.40615342,0.00015204,2]
[384996587,1757641842055,-480.0,0.00015204,2]
[384996588,1757641842064,-480.0,0.00015204,2]
[384996590,1757641842073,-186.709329,0.00015205,2]
[384996592,1757641842082,-186.709329,0.00015205,2]
[384996594,1757641842091,-151.0,0.00015205,2]
[384996596,1757641842100,-186.709329,0.00015205,2]
[384996598,1757641842109,-186.709329,0.00015205,2]
[384996600,1757641842121,-151.0,0.00015205,2]
[384996601,1757641842131,-156.226897,0.00015205,2]
[384996602,1757641842140,-153.613029,0.00015205,2]
[384996603,1757641842149,-218.907116,0.00015205,2]
[384996604,1757641842158,-151.0,0.00015205,2]
[384996605,1757641842167,-151.0,0.00015205,2]
[384996606,1757641842175,-155.0,0.00015216,2]
[384996607,1757641842185,-500.93670822,0.00015322,2]
[384996608,1757641842194,-501.86974597,0.0001537,2]
[384996609,1757641842203,-506.54287405,0.00015388,2]
[384996610,1757641842212,-500.3492413,0.00015388,2]
[384996611,1757641842221,-501.62040112,0.00015388,2]
[384996612,1757641842230,-500.95174205,0.00015388,2]
[384996613,1757641842238,-500.49937969,0.00015388,2]
[384996614,1757641842247,-8938.73995431,0.000154,2]
[384996615,1757641842256,-500.79943436,0.00015426,2]
[384996616,1757641842265,-1000.0,0.00015426,2]
[384996617,1757641842274,-480.0,0.00015454,2]
[384996618,1757641842282,-480.0,0.00015454,2]
[384996619,1757641842292,-480.0,0.00015454,2]
[384996620,1757641842302,-480.0,0.00015454,2]
[384996621,1757641842311,-480.0,0.00015454,2]
[384996622,1757641842320,-1576.27,0.00015454,2]
[384996623,1757641842329,-933.28,0.00015454,2]
[384996624,1757641842339,-480.0,0.00015454,2]
[384996625,1757641842348,-756.37,0.00015454,2]
[384996626,1757641842357,-1260.59,0.00015454,2]
[384996627,1757641842366,-480.0,0.00015454,2]
[384996628,1757641842376,-480.0,0.00015454,2]
[384996629,1757641842385,-480.0,0.00015454,2]
[384996630,1757641842394,-831.37,0.00015454,2]
[384996631,1757641842402,-1013.41,0.00015454,2]
[384996632,1757641842411,-480.0,0.00015454,2]
[384996633,1757641842420,-480.0,0.00015454,2]
[384996634,1757641842428,-283.95459247,0.00015454,2]
[384996635,1757641842437,-480.0,0.00015454,2]
[384996636,1757641842446,-480.0,0.00015454,2]
[384996637,1757641842455,-1232.83,0.00015454,2]
[384996638,1757641842464,-480.0,0.00015454,2]
[384996639,1757641842473,-480.0,0.00015454,2]
[384996641,1757641842482,-2693.59,0.00015454,2]
[384996643,1757641842491,-480.0,0.00015454,2]
[384996645,1757641842501,-499.29,0.00015454,2]
[384996647,1757641842510,-2811.94,0.00015454,2]
[384996649,1757641842519,-597.41,0.00015454,2]
[384996651,1757641842528,-7142.53,0.00015454,2]
[384996653,1757641842538,-480.0,0.00015455,2]
[384996655,1757641842547,-480.0,0.00015455,2]
[384996657,1757641842555,-480.0,0.00015455,2]
[384996659,1757641842564,-480.0,0.00015455,2]
[384996661,1757641842574,-480.0,0.00015455,2]
[384996663,1757641842583,-480.0,0.00015455,2]
[384996665,1757641842592,-480.0,0.00015455,2]
[384996667,1757641842601,-151.0,0.00015455,2]
[384996669,1757641842610,-151.0,0.00015455,2]
[384996671,1757641842619,-233.12027611,0.00015455,2]
[384996673,1757641842629,-829.62,0.00015455,2]
[384996675,1757641842638,-153.020184,0.00015455,2]
[384996677,1757641842647,-151.0,0.00015455,2]
[384996679,1757641842656,-151.0,0.00015455,2]
[384996681,1757641842665,-151.0,0.00015455,2]
[384996683,1757641842674,-159.655641,0.00015455,2]
[384996685,1757641842682,-480.0,0.00015455,2]
[384996687,1757641842692,-480.0,0.00015455,2]
[384996689,1757641842701,-768.51,0.00015455,2]
[384996691,1757641842710,-480.0,0.00015455,2]
[384996693,1757641842719,-624.59,0.00015455,2]
[384996695,1757641842728,-480.0,0.00015455,2]
[384996697,1757641842737,-480.0,0.00015455,2]
[384996699,1757641842747,-480.0,0.00015455,2]
[384996701,1757641842756,-480.0,0.00015455,2]
[384996703,1757641842766,-502.51089403,0.00015463,2]
[384996705,1757641842775,-501.0276302,0.00015463,2]
[384996707,1757641842785,-500.34681271,0.00015463,2]
[384996709,1757641842794,-340.83417394,0.00015463,2]
[384996711,1757641842803,-322.95752596,0.00015463,2]
[384996713,1757641842812,-500.43853504,0.00015463,2]
[384996715,1757641842821,-505.93013226,0.00015463,2]
[384996717,1757641842830,-501.23981746,0.00015463,2]
[384996719,1757641842839,-151.0,0.00015478,2]
[384996721,1757641842848,-152.871458,0.00015478,2]
[384996723,1757641842857,-480.0,0.00015478,2]
[384996725,1757641842867,-480.0,0.00015478,2]
[384996726,1757641842877,-481.9840955,0.00015481,2]
[384996729,1757641842888,-501.1531997,0.00015481,2]
[384996731,1757641842898,-500.0,0.00015481,2]
[384996733,1757641842908,-500.0,0.00015481,2]
[384996734,1757641842917,-500.0,0.00015481,2]
[384996736,1757641842927,-501.3793714,0.00015481,2]
[384996738,1757641842936,-158.91104472,0.00015481,2]
[384996740,1757641842945,-500.77832921,0.00015481,2]
[384996742,1757641842954,-79196.30704719,0.000155,7]
[384996745,1757641842968,-54435.04305834,0.000155,7]
[384996747,1757641842977,-151.0,0.000155,2]
[384996749,1757641842986,-151.0,0.000155,2]
[384996751,1757641842995,-151.0,0.000155,2]
[384996753,1757641843004,-186.709329,0.000155,2]
[384996755,1757641843014,-186.709329,0.000155,2]
[384996757,1757641843023,-151.0,0.000155,2]
[384996759,1757641843032,-186.709329,0.000155,2]
[384996760,1757641843041,-186.709329,0.000155,2]
[384996762,1757641843050,-151.0,0.000155,2]
[384996764,1757641843059,-151.0,0.000155,2]
[384996766,1757641843068,-151.0,0.000155,2]
[384996768,1757641843078,-151.0,0.000155,2]
[384996770,1757641843087,-151.0,0.000155,2]
[384996772,1757641843096,-151.0,0.000155,2]
[384996774,1757641843105,-154.26924,0.000155,2]
[384996776,1757641843115,-417.15472785,0.000155,7]
[384996778,1757641843125,-233.246092,0.000155,2]
[384996780,1757641843134,-233.246092,0.000155,2]
[384996782,1757641843143,-58.35267381,0.000155,2]
[384996785,1757641843156,-174.89341819,0.000155,2]
[384996787,1757641843165,-164.602516,0.000155,2]
[384996788,1757641843174,-233.246092,0.000155,2]
[384996790,1757641843184,-151.0,0.000155,2]
[384996792,1757641843193,-151.0,0.000155,2]
[384996794,1757641843202,-151.0,0.000155,2]
[384996796,1757641843211,-255.129391,0.000155,2]
[384996798,1757641843220,-255.129391,0.000155,2]
[384996800,1757641843229,-255.129391,0.000155,2]
[384996802,1757641843238,-255.129391,0.000155,2]
[384996814,1757641843337,-151.0,0.000155,2]
[384996816,1757641843346,-151.0,0.000155,2]
[384996818,1757641843355,-151.0,0.000155,2]
[384996820,1757641843366,-151.945491,0.000155,2]
[384996822,1757641843376,-151.0,0.000155,2]
[384996824,1757641843386,-151.0,0.000155,2]
[384996826,1757641843395,-162.909053,0.000155,2]
[384996828,1757641843404,-153.532687,0.000155,2]
[384996830,1757641843414,-151.0,0.000155,2]
[384996832,1757641843423,-151.0,0.000155,2]
[384996834,1757641843432,-151.0,0.000155,2]
[384996836,1757641843442,-171.574529,0.000155,2]
[384996838,1757641843451,-151.0,0.000155,2]
[384996840,1757641843460,-151.0,0.000155,2]
[384996842,1757641843470,-1003.4264393,0.00015527,2]
[384996844,1757641843479,-270.188107,0.00015546,2]
[384996846,1757641843489,-155.909268,0.00015546,2]
[384996848,1757641843498,-1007.72438835,0.00015546,2]
[384996850,1757641843507,-502.6960184,0.00015554,2]
[384996852,1757641843516,-501.02421732,0.00015554,2]
[384996854,1757641843526,-500.72771575,0.0001556,2]
[384996856,1757641843534,-160.0,0.00015579,2]
[384996858,1757641843543,-906.02385137,0.00015629,2]
[384996860,1757641843553,-420.0,0.00015722,2]
[384996862,1757641843562,-480.0,0.00015728,2]
[384996863,1757641843571,-480.0,0.00015728,2]
[384996865,1757641843580,-480.0,0.00015728,2]
[384996867,1757641843589,-480.0,0.00015728,2]
[384996869,1757641843598,-480.0,0.00015728,2]
[384996871,1757641843607,-1576.27,0.00015728,2]
[384996873,1757641843616,-933.28,0.00015728,2]
[384996875,1757641843626,-480.0,0.00015728,2]
[384996877,1757641843635,-756.37,0.00015728,2]
[384996879,1757641843645,-1260.59,0.00015728,2]
[384996881,1757641843654,-480.0,0.00015728,2]
[384996883,1757641843663,-480.0,0.00015728,2]
[384996885,1757641843672,-480.0,0.00015728,2]
[384996887,1757641843682,-831.37,0.00015728,2]
[384996889,1757641843691,-1013.41,0.00015728,2]
[384996891,1757641843701,-480.0,0.00015728,2]
[384996893,1757641843711,-242.94543624,0.00015728,2]
[384996895,1757641843720,-480.0,0.00015728,2]
[384996897,1757641843730,-352.85970596,0.00015728,2]
[384996899,1757641843739,-1232.83,0.00015728,2]
[384996901,1757641843749,-480.0,0.00015728,2]
[384996903,1757641843758,-480.0,0.00015728,2]
[384996905,1757641843767,-2693.59,0.00015728,2]
[384996907,1757641843776,-480.0,0.00015728,2]
[384996909,1757641843786,-499.29,0.00015728,2]
[384996911,1757641843795,-2811.94,0.00015728,2]
[384996913,1757641843804,-597.41,0.00015728,2]
[384996915,1757641843814,-7142.53,0.00015728,2]
[384996917,1757641843823,-480.0,0.00015729,2]
[384996919,1757641843833,-323.24752921,0.00015729,2]
[384996921,1757641843842,-480.0,0.00015729,2]
[384996923,1757641843851,-480.0,0.00015729,2]
[384996925,1757641843860,-480.0,0.00015729,2]
[384996927,1757641843870,-480.0,0.00015729,2]
[384996929,1757641843881,-480.0,0.00015729,2]
[384996931,1757641843891,-829.62,0.00015729,2]
[384996933,1757641843901,-480.0,0.00015729,2]
[384996935,1757641843910,-480.0,0.00015729,2]
[384996937,1757641843919,-768.51,0.00015729,2]
[384996939,1757641843929,-480.0,0.00015729,2]
[384996941,1757641843939,-624.59,0.00015729,2]
[384996943,1757641843948,-480.0,0.00015729,2]
[384996945,1757641843959,-480.0,0.00015729,2]
[384996947,1757641843969,-480.0,0.00015729,2]
[384996949,1757641843978,-480.0,0.00015729,2]
[384996951,1757641843988,-154.511059,0.00015751,2]
[384996952,1757641843998,-151.588811,0.00015751,2]
[384996955,1757641844007,-300.0,0.00015751,2]
[384996956,1757641844016,-300.0,0.00015751,2]
[384996958,1757641844025,-300.0,0.00015751,2]
[384996960,1757641844035,-300.0,0.00015751,2]
[384996962,1757641844045,-480.0,0.00015752,2]
[384996964,1757641844055,-480.0,0.00015752,2]
[384996966,1757641844064,-994.0,0.00015792,2]
[384996968,1757641844074,-168.0,0.00015856,2]
[384996970,1757641844083,-168.0,0.00015894,2]
[384996972,1757641844092,-168.0,0.00015926,2]
[384996974,1757641844102,-514.6995861,0.00015974,2]
[384996977,1757641844111,-480.0,0.00016002,2]
[384996979,1757641844121,-480.0,0.00016002,2]
[384996982,1757641844130,-480.0,0.00016002,2]
[384996983,1757641844139,-480.0,0.00016002,2]
[384996985,1757641844149,-480.0,0.00016002,2]
[384996987,1757641844159,-1576.27,0.00016002,2]
[384996989,1757641844168,-933.28,0.00016002,2]
[384996991,1757641844177,-480.0,0.00016002,2]
[384996994,1757641844188,-756.37,0.00016002,2]
[384996996,1757641844198,-1260.59,0.00016002,2]
[384996998,1757641844207,-480.0,0.00016002,2]
[384997000,1757641844216,-480.0,0.00016002,2]
[384997002,1757641844226,-480.0,0.00016002,2]
[384997004,1757641844235,-831.37,0.00016002,2]
[384997007,1757641844245,-1013.41,0.00016002,2]
[384997010,1757641844254,-480.0,0.00016002,2]
[384997013,1757641844264,-480.0,0.00016002,2]
[384997016,1757641844273,-1232.83,0.00016002,2]
[384997019,1757641844284,-480.0,0.00016002,2]
[384997021,1757641844294,-480.0,0.00016002,2]
[384997023,1757641844303,-2693.59,0.00016002,2]
[384997025,1757641844312,-480.0,0.00016002,2]
[384997027,1757641844322,-499.29,0.00016002,2]
[384997029,1757641844331,-2811.94,0.00016002,2]
[384997031,1757641844341,-597.41,0.00016002,2]
[384997033,1757641844351,-7142.53,0.00016002,2]
[384997035,1757641844360,-480.0,0.00016003,2]
[384997037,1757641844369,-480.0,0.00016003,2]
[384997039,1757641844379,-480.0,0.00016003,2]
[384997041,1757641844388,-260.71602098,0.00016003,2]
[384997043,1757641844397,-480.0,0.00016003,2]
[384997045,1757641844407,-480.0,0.00016003,2]
[384997047,1757641844416,-829.62,0.00016003,2]
[384997049,1757641844426,-480.0,0.00016003,2]
[384997051,1757641844435,-480.0,0.00016003,2]
[384997053,1757641844445,-768.51,0.00016003,2]
[384997055,1757641844454,-480.0,0.00016003,2]
[384997057,1757641844464,-624.59,0.00016003,2]
[384997059,1757641844474,-480.0,0.00016003,2]
[384997061,1757641844483,-498.77101855,0.00016003,2]
[384997063,1757641844493,-480.0,0.00016003,2]
[384997065,1757641844502,-480.0,0.00016003,2]
[384997067,1757641844511,-480.0,0.00016026,2]
[384997069,1757641844520,-480.0,0.00016026,2]
[384997071,1757641844530,-501.22653571,0.00016029,2]
[384997073,1757641844539,-720.0,0.00016109,2]
[384997075,1757641844550,-168.0,0.0001611,2]
[384997077,1757641844559,-168.0,0.00016122,2]
[384997079,1757641844568,-260.0,0.00016127,2]
[384997081,1757641844577,-505.11654427,0.00016164,2]
[384997083,1757641844586,-906.02385137,0.00016177,2]
[384997085,1757641844595,-480.0,0.00016276,2]
[384997086,1757641844604,-480.0,0.00016276,2]
[384997088,1757641844615,-480.0,0.00016276,2]
[384997091,1757641844625,-480.0,0.00016276,2]
[384997093,1757641844634,-480.0,0.00016276,2]
[384997095,1757641844644,-1576.27,0.00016276,2]
[384997097,1757641844653,-933.28,0.00016276,2]
[384997099,1757641844662,-480.0,0.00016276,2]
[384997101,1757641844671,-756.37,0.00016276,2]
[384997103,1757641844681,-1260.59,0.00016276,2]
[384997105,1757641844691,-480.0,0.00016276,2]
[384997107,1757641844700,-480.0,0.00016276,2]
[384997109,1757641844709,-480.0,0.00016276,2]
[384997111,1757641844718,-831.37,0.00016276,2]
[384997113,1757641844727,-1013.41,0.00016276,2]
[384997115,1757641844736,-480.0,0.00016276,2]
[384997117,1757641844746,-480.0,0.00016276,2]
[384997119,1757641844755,-1232.83,0.00016276,2]
[384997121,1757641844765,-480.0,0.00016276,2]
[384997123,1757641844774,-480.0,0.00016276,2]
[384997125,1757641844783,-2693.59,0.00016276,2]
[384997127,1757641844792,-480.0,0.00016276,2]
[384997128,1757641844801,-2811.94,0.00016276,2]
[384997129,1757641844810,-499.29,0.00016276,2]
[384997130,1757641844819,-597.41,0.00016276,2]
[384997131,1757641844828,-7142.53,0.00016276,2]
[384997132,1757641844838,-480.0,0.00016277,2]
[384997134,1757641844848,-480.0,0.00016277,2]
[384997136,1757641844857,-480.0,0.00016277,2]
[384997138,1757641844866,-480.0,0.00016277,2]
[384997140,1757641844875,-480.0,0.00016277,2]
[384997142,1757641844886,-829.62,0.00016277,2]
[384997144,1757641844898,-480.0,0.00016277,2]
[384997146,1757641844907,-480.0,0.00016277,2]
[384997148,1757641844917,-768.51,0.00016277,2]
[384997150,1757641844927,-480.0,0.00016277,2]
[384997152,1757641844936,-624.59,0.00016277,2]
[384997154,1757641844945,-480.0,0.00016277,2]
[384997156,1757641844955,-480.0,0.00016277,2]
[384997158,1757641844964,-480.0,0.00016277,2]
[384997160,1757641844973,-480.0,0.000163,2]
[384997162,1757641844983,-422.84782814,0.000163,2]
[384997164,1757641844993,-168.0,0.00016357,2]
[384997166,1757641845003,-168.0,0.00016428,2]
[384997168,1757641845013,-500.0,0.00016438,2]
[384997170,1757641845022,-500.0,0.00016438,2]
[384997172,1757641845032,-500.0,0.00016438,2]
[384997174,1757641845040,-500.0,0.00016438,2]
[384997176,1757641845051,-500.0,0.00016438,2]
[384997178,1757641845061,-500.0,0.00016438,2]
[384997181,1757641845071,-500.0,0.00016438,2]
[384997183,1757641845080,-500.0,0.00016438,2]
[384997185,1757641845090,-500.0,0.00016438,2]
[384997187,1757641845099,-500.0,0.00016438,2]
[384997189,1757641845108,-233.246092,0.00016438,2]
[384997191,1757641845117,-233.246092,0.00016438,2]
[384997193,1757641845127,-233.246092,0.00016438,2]
[384997195,1757641845136,-233.246092,0.00016438,2]
[384997197,1757641845145,-151.0,0.00016438,2]
[384997199,1757641845154,-151.0,0.00016438,2]
[384997201,1757641845163,-151.0,0.00016438,2]
[384997202,1757641845172,-255.129391,0.00016438,2]
[384997204,1757641845182,-255.129391,0.00016438,2]
[384997206,1757641845191,-255.129391,0.00016438,2]
[384997208,1757641845200,-255.129391,0.00016438,2]
[384997210,1757641845209,-168.0,0.00016448,2]
[384997212,1757641845219,-168.0,0.00016538,2]
[384997214,1757641845229,-480.0,0.0001655,2]
[384997216,1757641845238,-480.0,0.0001655,2]
[384997218,1757641845247,-226.9500982,0.0001655,2]
[384997220,1757641845256,-151.0,0.0001655,2]
[384997222,1757641845266,-153.932158,0.0001655,2]
[384997224,1757641845274,-186.709329,0.0001655,2]
[384997226,1757641845283,-186.709329,0.0001655,2]
[384997228,1757641845292,-152.825135,0.0001655,2]
[384997230,1757641845301,-186.709329,0.0001655,2]
[384997232,1757641845311,-186.709329,0.0001655,2]
[384997234,1757641845320,-480.0,0.0001655,2]
[384997236,1757641845330,-151.0,0.0001655,2]
[384997239,1757641845341,-151.0,0.0001655,2]
[384997241,1757641845350,-151.0,0.0001655,2]
[384997243,1757641845359,-480.0,0.0001655,2]
[384997258,1757641845456,-1576.27,0.0001655,2]
[384997261,1757641845466,-1000.0,0.0001655,2]
[384997264,1757641845475,-1000.0,0.0001655,2]
[384997267,1757641845483,-1000.0,0.0001655,2]
[384997270,1757641845492,-1000.0,0.0001655,2]
[384997272,1757641845502,-1000.0,0.0001655,2]
[384997274,1757641845511,-1000.0,0.0001655,2]
[384997276,1757641845521,-1000.0,0.0001655,2]
[384997279,1757641845530,-1000.0,0.0001655,2]
[384997282,1757641845539,-1000.0,0.0001655,2]
[384997285,1757641845548,-1000.0,0.0001655,2]
[384997287,1757641845558,-1000.0,0.0001655,2]
[384997289,1757641845567,-1000.0,0.0001655,2]
[384997291,1757641845576,-1000.0,0.0001655,2]
[384997293,1757641845585,-1000.0,0.0001655,2]